bitfinex/quotes_BTCUSD_20250902
["timestamp","ask_amount","ask_price","bid_price","bid_amount"]
[1756828842885,0.57277355,111080.0,111070.0,0.69248261]
[1756828843105,0.146643,111080.0,111070.0,0.69248261]
[1756828843331,0.57277355,111080.0,111070.0,0.69248261]
[1756828843554,0.75282396,111080.0,111070.0,0.35441599]
[1756828843772,0.32369341,111080.0,111070.0,0.35441599]
[1756828843993,0.74982396,111080.0,111070.0,0.51241599]
[1756828844217,0.74982396,111080.0,111070.0,0.69248261]
[1756828844668,0.56977355,111080.0,111070.0,0.69248261]
[1756828844909,0.32369341,111080.0,111070.0,0.69248261]
[1756828845128,0.75282396,111080.0,111070.0,0.69248261]
[1756828845888,0.75282396,111080.0,111070.0,0.42998261]
[1756828846564,0.57277355,111080.0,111070.0,0.42998261]
[1756828847031,0.143423,111080.0,111070.0,0.43201261]
[1756828847747,0.114263,111080.0,111070.0,0.88225198]
[1756828848184,0.111263,111080.0,111070.0,0.7381902]
[1756828848414,0.112263,111080.0,111070.0,0.8961902]
[1756828849511,0.112263,111080.0,111070.0,0.8961502]
[1756828850658,0.54055355,111080.0,111070.0,0.7329902]
[1756828850874,0.112263,111080.0,111070.0,0.8929802]
[1756828851092,0.56755355,111080.0,111070.0,0.49191599]
[1756828851320,0.144643,111080.0,111070.0,0.82994261]
[1756828851540,0.57077355,111080.0,111070.0,0.82994261]
[1756828851759,0.141423,111080.0,111070.0,0.83197261]
[1756828851981,0.112263,111080.0,111070.0,0.85608143]
[1756828852205,0.112263,111080.0,111070.0,1.28221198]
[1756828852432,0.112263,111080.0,111070.0,1.62221198]
[1756828852886,0.112263,111080.0,111070.0,1.66264985]
[1756828853992,0.111263,111080.0,111070.0,1.66264985]
[1756828854854,0.111263,111080.0,111070.0,1.2365193]
[1756828855085,0.111263,111080.0,111070.0,1.66264985]
[1756828855983,0.111263,111080.0,111070.0,1.50468985]
[1756828856207,0.111263,111080.0,111070.0,1.66264985]
[1756828856857,0.111263,111080.0,111070.0,1.50468985]
[1756828857063,0.111263,111080.0,111070.0,1.66264985]
[1756828857737,0.111263,111080.0,111070.0,1.92514985]
[1756828859487,0.111263,111080.0,111070.0,1.66264985]
[1756828860383,0.111263,111080.0,111070.0,1.2365193]
[1756828860601,0.111263,111080.0,111070.0,1.0785593]
[1756828860819,0.111263,111080.0,111070.0,1.2364793]
[1756828861079,0.113423,111080.0,111070.0,1.0733593]
[1756828861299,0.113423,111080.0,111070.0,1.2333093]
[1756828861519,0.143643,111080.0,111070.0,0.71242048]
[1756828861742,0.56977355,111080.0,111070.0,0.67198261]
[1756828861970,0.56977355,111080.0,111070.0,0.82990261]
[1756828862415,0.74982396,111080.0,111070.0,0.64983599]
[1756828862632,0.74982396,111080.0,111070.0,0.42990261]
[1756828863571,0.74982396,111080.0,111070.0,0.24983599]
[1756828863804,0.18008037,111070.0,111050.0,0.450984]
[1756828864033,0.18008037,111070.0,111060.0,0.09191599]
[1756828864269,0.18008037,111070.0,111060.0,0.24983599]
[1756828864270,0.60571128,111070.0,111060.0,0.24983599]
[1756828864494,0.18174073,111070.0,111060.0,0.15792]
[1756828864713,0.63809128,111070.0,111060.0,0.15792]
[1756828865452,0.18008283,111060.0,111050.0,0.24372004]
[1756828865722,0.45635055,111060.0,111050.0,0.49359603]
[1756828865993,0.03238,111060.0,111050.0,0.49562603]
[1756828866358,0.114483,111080.0,111070.0,0.18006662]
[1756828866652,0.114483,111080.0,111070.0,0.43219344]
[1756828866653,0.116643,111080.0,111070.0,0.43219344]
[1756828866876,0.116643,111080.0,111070.0,0.42994261]
[1756828867110,0.111263,111080.0,111070.0,0.44891143]
[1756828867336,0.111263,111080.0,111070.0,1.21821198]
[1756828867579,0.111263,111080.0,111070.0,1.41653198]
[1756828867795,0.115263,111080.0,111070.0,1.41653198]
[1756828868014,0.111263,111080.0,111070.0,1.81653198]
[1756828868448,0.114263,111080.0,111070.0,1.81653198]
[1756828869069,0.114263,111080.0,111070.0,1.85719292]
[1756828869070,0.111263,111080.0,111070.0,1.85719292]
[1756828870421,0.111263,111080.0,111070.0,1.85919292]
[1756828870718,0.111263,111080.0,111070.0,1.70123292]
[1756828870933,0.111263,111080.0,111070.0,1.85919292]
[1756828871350,0.111263,111080.0,111070.0,1.43306237]
[1756828871800,0.111263,111080.0,111070.0,2.12169292]
[1756828872026,0.111263,111080.0,111070.0,1.69556237]
[1756828872255,0.111263,111080.0,111070.0,2.12169292]
[1756828873175,0.111263,111080.0,111070.0,1.85919292]
[1756828873399,1e-08,111080.0,111070.0,1.85919292]
[1756828873619,1e-08,111080.0,111070.0,1.95919292]
[1756828874293,1e-08,111080.0,111070.0,2.46593555]
[1756828874516,1e-08,111080.0,111070.0,2.38532347]
[1756828874729,1e-08,111080.0,111070.0,2.38332347]
[1756828874955,1e-08,111080.0,111070.0,2.38932347]
[1756828875190,1e-08,111080.0,111070.0,2.06993555]
[1756828875412,0.0002,111100.0,111070.0,2.06993555]
[1756828875413,0.0002,111100.0,111090.0,0.67710357]
[1756828875626,0.0002,111100.0,111090.0,0.99037956]
[1756828875855,0.0002,111100.0,111090.0,0.41153901]
[1756828876083,0.0002,111100.0,111090.0,0.99558956]
[1756828876311,0.0002,111100.0,111090.0,0.99919582]
[1756828876560,0.0002,111100.0,111090.0,0.52306527]
[1756828876780,0.00283009,111100.0,111090.0,0.85629901]
[1756828877001,0.00283009,111100.0,111090.0,0.85729901]
[1756828877983,0.03190009,111100.0,111090.0,0.85524901]
[1756828878678,0.03190009,111100.0,111090.0,0.33639019]
[1756828878904,0.45803064,111100.0,111090.0,0.49431019]
[1756828879174,0.63804864,111100.0,111090.0,0.33639019]
[1756828879406,0.63804864,111100.0,111090.0,0.31427599]
[1756828879624,0.21191809,111100.0,111090.0,0.49431019]
[1756828879836,0.63804864,111100.0,111090.0,0.15635599]
[1756828880053,0.45803064,111100.0,111090.0,0.49660061]
[1756828880323,0.45803064,111100.0,111090.0,0.49956019]
[1756828880324,0.02656009,111100.0,111090.0,0.49956019]
[1756828880539,0.02656009,111100.0,111090.0,0.86149901]
[1756828880763,0.02872009,111100.0,111090.0,0.85633901]
[1756828881005,0.03190009,111100.0,111090.0,0.85428901]
[1756828881217,0.03290009,111100.0,111090.0,0.85428901]
[1756828881432,0.03190009,111100.0,111090.0,0.85428901]
[1756828881678,0.03190009,111100.0,111090.0,0.85528901]
[1756828881889,0.02656009,111100.0,111090.0,0.85733901]
[1756828882333,0.00067009,111100.0,111090.0,0.86049901]
[1756828883007,0.00067009,111100.0,111090.0,1.26049901]
[1756828883441,0.00067009,111100.0,111090.0,1.10253901]
[1756828883658,0.00067009,111100.0,111090.0,1.26057901]
[1756828883884,0.00067009,111100.0,111090.0,1.68670956]
[1756828884109,0.0002,111110.0,111100.0,0.54095682]
[1756828884342,0.00034094,111110.0,111100.0,1.05931281]
[1756828884570,0.00250094,111110.0,111100.0,1.06136281]
[1756828884791,0.00034094,111110.0,111100.0,1.06452281]
[1756828885013,0.00034094,111110.0,111100.0,1.46452281]
[1756828885238,0.00034094,111110.0,111100.0,1.62225336]
[1756828886162,0.00034094,111110.0,111100.0,1.62253336]
[1756828886380,0.00034094,111110.0,111100.0,1.19640281]
[1756828886604,0.00034094,111110.0,111100.0,1.89093336]
[1756828886831,0.00034094,111110.0,111100.0,1.46480281]
[1756828887290,0.00034094,111110.0,111100.0,1.89093336]
[1756828887515,0.00034094,111110.0,111100.0,1.89293336]
[1756828887727,0.00034094,111110.0,111100.0,1.90185015]
[1756828888392,0.00034094,111110.0,111100.0,1.94203271]
[1756828889504,0.00034094,111110.0,111100.0,1.96812271]
[1756828889983,0.00034094,111110.0,111100.0,1.54199216]
[1756828890202,0.00034094,111110.0,111100.0,1.96812271]
[1756828890626,0.00034094,111110.0,111100.0,1.80972271]
[1756828890835,0.00034094,111110.0,111100.0,1.54187216]
[1756828891013,0.00034094,111110.0,111100.0,1.96796271]
[1756828891267,0.00034094,111110.0,111100.0,1.38359216]
[1756828891485,0.00034094,111110.0,111100.0,1.54183216]
[1756828892391,0.00034094,111110.0,111100.0,1.96796271]
[1756828893042,0.00034094,111110.0,111100.0,1.54183216]
[1756828893276,0.00034094,111110.0,111100.0,1.37228216]
[1756828893496,0.00250094,111110.0,111100.0,1.50447216]
[1756828893718,0.00034094,111110.0,111100.0,1.50968216]
[1756828893941,0.00034094,111110.0,111100.0,1.93581271]
[1756828894166,9.67e-06,111110.0,111100.0,1.93581271]
[1756828895477,0.02927,111140.0,111130.0,0.20090822]
[1756828895688,0.02927,111140.0,111130.0,0.77676421]
[1756828895900,0.02825,111140.0,111130.0,0.77676421]
[1756828896119,0.02825,111140.0,111130.0,1.17676421]
[1756828896327,0.03143,111140.0,111130.0,1.17676421]
[1756828896654,0.03143,111140.0,111130.0,1.17881421]
[1756828896655,0.02825,111140.0,111130.0,1.17881421]
[1756828896859,0.03243,111140.0,111130.0,1.17676421]
[1756828897090,0.02925,111140.0,111130.0,1.17881421]
[1756828897506,0.03243,111140.0,111130.0,1.17676421]
[1756828897703,0.03143,111140.0,111130.0,1.01856421]
[1756828897949,0.03143,111140.0,111130.0,1.17684421]
[1756828898739,0.02825,111140.0,111130.0,1.17887421]
[1756828898942,0.02825,111140.0,111130.0,1.17684421]
[1756828899145,0.03125,111140.0,111130.0,1.17664421]
[1756828899529,0.02825,111140.0,111130.0,1.17867421]
[1756828900130,0.02609,111140.0,111130.0,1.17867421]
[1756828900326,0.02609,111140.0,111130.0,1.94783476]
[1756828900531,0.02813,111140.0,111130.0,1.51867421]
[1756828900727,0.03113,111140.0,111130.0,1.51684421]
[1756828901181,0.03113,111140.0,111130.0,1.51680421]
[1756828901754,0.03113,111140.0,111130.0,1.35856421]
[1756828902008,0.02813,111140.0,111130.0,1.51891421]
[1756828902394,0.02813,111140.0,111130.0,1.35856421]
[1756828902606,0.03113,111140.0,111130.0,1.05894376]
[1756828902832,0.69362362,111140.0,111130.0,0.55535599]
[1756828903024,0.87357683,111140.0,111130.0,0.89360539]
[1756828903577,0.87357683,111140.0,111130.0,0.73532539]
[1756828903760,0.87357683,111140.0,111130.0,0.89356539]
[1756828903888,0.69362362,111140.0,111130.0,0.89356539]
[1756828904146,0.87457683,111140.0,111130.0,0.31359599]
[1756828904373,0.21208321,111140.0,111130.0,0.49356539]
[1756828904656,0.87457683,111140.0,111130.0,0.49356539]
[1756828905094,0.87457683,111140.0,111130.0,0.49360539]
[1756828905521,0.87457683,111140.0,111130.0,0.31363599]
[1756828905729,0.87457683,111140.0,111130.0,0.49360539]
[1756828906164,0.87457683,111140.0,111130.0,0.33532539]
[1756828906371,0.87457683,111140.0,111130.0,0.49360539]
[1756828906713,0.21208321,111140.0,111130.0,0.49360539]
[1756828906925,0.87457683,111140.0,111130.0,0.49360539]
[1756828907146,0.87457683,111140.0,111130.0,0.2216]
[1756828907355,0.87457683,111140.0,111130.0,0.06344]
[1756828907721,0.90411618,111140.0,111130.0,0.22164]
[1756828907920,0.90411618,111140.0,111110.0,0.0634]
[1756828907921,0.1799856,111120.0,111110.0,0.0634]
[1756828908119,0.84247922,111120.0,111110.0,0.15531599]
[1756828908322,0.87347922,111120.0,111110.0,0.31355599]
[1756828908535,0.87347922,111120.0,111110.0,0.33531779]
[1756828908755,0.2109856,111120.0,111110.0,0.49355779]
[1756828908956,0.87347922,111120.0,111110.0,0.49355779]
[1756828909214,0.87347922,111120.0,111110.0,0.31355599]
[1756828909599,0.2109856,111120.0,111110.0,0.49355779]
[1756828909837,0.87547922,111120.0,111110.0,0.49355779]
[1756828910005,0.69549362,111120.0,111110.0,0.49355779]
[1756828910205,0.87547922,111120.0,111110.0,0.49355779]
[1756828910412,0.87747922,111120.0,111110.0,0.49355779]
[1756828910775,0.87747922,111120.0,111110.0,0.31355599]
[1756828910975,0.87747922,111120.0,111110.0,0.49355779]
[1756828911300,0.87347922,111120.0,111110.0,0.49359779]
[1756828911501,0.87447922,111120.0,111110.0,0.49359779]
[1756828911709,0.87447922,111120.0,111110.0,0.15531599]
[1756828911907,1.21447922,111120.0,111110.0,0.0634]
[1756828912111,1.21447922,111120.0,111110.0,0.22168]
[1756828912355,1.21447922,111120.0,111110.0,0.0634]
[1756828912535,1.21447922,111120.0,111110.0,0.22168]
[1756828913472,1.33522991,111120.0,111110.0,0.0634]
[1756828913689,0.18004567,111090.0,111080.0,0.06344]
[1756828913891,0.84253929,111090.0,111080.0,0.40053041]
[1756828914098,0.031,111090.0,111080.0,0.40053041]
[1756828914300,0.87352782,111090.0,111080.0,0.40053041]
[1756828914726,0.2110342,111090.0,111080.0,0.40053041]
[1756828914928,0.87352782,111090.0,111080.0,0.40053041]
[1756828915137,0.031,111090.0,111080.0,0.40053041]
[1756828915341,0.028,111090.0,111080.0,0.40256041]
[1756828915549,0.69349362,111090.0,111080.0,0.40053041]
[1756828915782,0.87352782,111090.0,111080.0,0.40053041]
[1756828916829,0.87352782,111090.0,111080.0,0.40153041]
[1756828917028,0.87352782,111090.0,111080.0,0.40269041]
[1756828917274,0.031,111090.0,111080.0,0.40269041]
[1756828917530,0.69049362,111090.0,111080.0,0.8966364]
[1756828917741,0.02596,111090.0,111080.0,0.8996664]
[1756828919230,0.66249362,111100.0,111090.0,0.1800342]
[1756828919459,0.66249362,111100.0,111090.0,0.27195019]
[1756828919636,0.84755162,111100.0,111090.0,0.27195019]
[1756828920311,0.87351162,111100.0,111090.0,0.15812]
[1756828920530,0.1800342,111090.0,111080.0,0.06344]
[1756828920735,0.87352782,111090.0,111080.0,0.22164]
[1756828922006,0.87552782,111090.0,111080.0,0.22164]
[1756828922455,0.87552782,111090.0,111080.0,0.40169041]
[1756828922677,0.03,111090.0,111080.0,0.40372041]
[1756828922895,0.2100342,111090.0,111080.0,0.40372041]
[1756828923528,0.87552782,111090.0,111080.0,0.06344]
[1756828923759,0.87352782,111090.0,111080.0,0.22156]
[1756828924162,0.87452782,111090.0,111080.0,0.22156]
[1756828924374,0.87452782,111090.0,111080.0,0.40161041]
[1756828924375,0.87352782,111090.0,111080.0,0.40161041]
[1756828924529,0.028,111090.0,111080.0,0.4955564]
[1756828924739,0.02796,111090.0,111080.0,0.4985864]
[1756828925013,0.02596,111090.0,111080.0,0.4985864]
[1756828925214,0.84251162,111100.0,111090.0,0.1800342]
[1756828925434,0.1800018,111110.0,111100.0,0.180018]
[1756828925625,0.84453542,111110.0,111100.0,0.43001399]
[1756828925847,0.84453542,111110.0,111100.0,0.42801399]
[1756828925848,0.87349542,111110.0,111100.0,0.42801399]
[1756828926505,0.2080018,111110.0,111100.0,0.27196399]
[1756828926734,0.54107505,111130.0,111110.0,0.1800018]
[1756828926735,0.20107505,111130.0,111110.0,0.1800018]
[1756828926969,0.88952867,111130.0,111120.0,0.15804]
[1756828927188,0.88247502,111130.0,111120.0,0.15804]
[1756828927406,0.1799856,111120.0,111110.0,0.33535779]
[1756828927662,0.84247922,111120.0,111110.0,0.49385475]
[1756828927880,0.66249362,111120.0,111110.0,0.49588475]
[1756828928111,0.21194293,111130.0,111120.0,0.1799856]
[1756828928326,0.02596,111130.0,111120.0,0.27415141]
[1756828928546,0.2080294,111130.0,111120.0,0.27190159]
[1756828928756,0.2080294,111130.0,111120.0,0.26900159]
[1756828928986,0.2080294,111130.0,111120.0,0.42700159]
[1756828929195,0.87052302,111130.0,111120.0,0.42700159]
[1756828929841,0.2080294,111130.0,111120.0,0.42696159]
[1756828930063,0.87365302,111130.0,111120.0,0.42486159]
[1756828930310,0.1799856,111120.0,111110.0,0.64393876]
[1756828930525,0.84560922,111120.0,111110.0,0.89381475]
[1756828930738,0.87342922,111120.0,111110.0,0.55585295]
[1756828930948,0.87342922,111120.0,111110.0,0.89381475]
[1756828931578,0.87029922,111120.0,111110.0,0.49781475]
[1756828931808,0.87029922,111120.0,111110.0,0.50703587]
[1756828932027,0.87029922,111120.0,111110.0,0.49991475]
[1756828932704,0.02572,111120.0,111110.0,0.49991475]
[1756828932925,0.02572,111120.0,111110.0,0.50295475]
[1756828933144,0.2078056,111120.0,111110.0,0.34195475]
[1756828933369,0.87029922,111120.0,111110.0,0.49781475]
[1756828934015,0.87029922,111120.0,111110.0,0.49991475]
[1756828934444,0.87029922,111120.0,111110.0,0.49781475]
[1756828934992,0.69031362,111120.0,111110.0,0.49991475]
[1756828935200,0.2078056,111120.0,111110.0,0.49991475]
[1756828935409,0.2078056,111120.0,111110.0,0.89781475]
[1756828935832,0.2078056,111120.0,111110.0,0.89991475]
[1756828936255,0.87029922,111120.0,111110.0,0.89991475]
[1756828937071,0.69031362,111120.0,111110.0,0.89991475]
[1756828937290,0.19816609,111140.0,111110.0,0.90295475]
[1756828937508,0.84246302,111130.0,111110.0,0.90295475]
[1756828937749,0.84246302,111130.0,111120.0,0.27190159]
[1756828937968,0.84456302,111130.0,111120.0,0.27400159]
[1756828938189,0.84456302,111130.0,111120.0,0.27190159]
[1756828938365,0.87341302,111130.0,111120.0,0.27190159]
[1756828938584,0.2077894,111130.0,111120.0,0.27190159]
[1756828938753,0.2077894,111130.0,111120.0,0.27400159]
[1756828938960,0.87341302,111130.0,111120.0,0.49191599]
[1756828939176,0.87341302,111130.0,111120.0,0.55796]
[1756828939578,0.87341302,111130.0,111120.0,0.15796]
[1756828939752,0.87341302,111130.0,111120.0,0.3379456]
[1756828940163,0.87341302,111130.0,111120.0,0.15796]
[1756828940375,0.1799856,111120.0,111110.0,0.64393876]
[1756828940588,0.87132922,111120.0,111110.0,0.89377475]
[1756828940791,0.87342922,111120.0,111110.0,0.89377475]
[1756828941291,0.02782,111120.0,111110.0,0.89587475]
[1756828941504,0.69031362,111120.0,111110.0,0.89587475]
[1756828941711,0.69031362,111120.0,111110.0,0.89887475]
[1756828942260,0.87029922,111120.0,111110.0,0.89887475]
[1756828942379,0.87029922,111120.0,111110.0,0.89677475]
[1756828942583,0.02572,111120.0,111110.0,0.90191475]
[1756828942833,0.02782,111120.0,111110.0,0.89887475]
[1756828943044,0.2078056,111120.0,111110.0,0.89887475]
[1756828943421,0.02782,111120.0,111110.0,0.89887475]
[1756828943746,0.87029922,111120.0,111110.0,0.73885475]
[1756828943979,0.69031362,111120.0,111110.0,0.89887475]
[1756828944176,0.87029922,111120.0,111110.0,0.89677475]
[1756828944397,0.02572,111120.0,111110.0,0.90191475]
[1756828944607,0.34333,111140.0,111130.0,0.1799694]
[1756828944964,0.0002,111140.0,111130.0,0.437195]
[1756828945159,0.0002,111140.0,111130.0,0.43494539]
[1756828946113,0.0002,111140.0,111130.0,0.45588421]
[1756828946313,0.0002,111140.0,111130.0,0.49723261]
[1756828946514,0.0002,111140.0,111130.0,0.49823261]
[1756828947146,0.0002,111140.0,111130.0,0.34031261]
[1756828947334,0.0002,111140.0,111130.0,0.89723261]
[1756828947544,0.0002,111140.0,111130.0,0.90223261]
[1756828948625,0.0002,111140.0,111130.0,0.74431261]
[1756828948830,0.0002,111140.0,111130.0,0.90223261]
[1756828949246,0.0002,111140.0,111130.0,0.74431261]
[1756828949882,0.0002,111140.0,111130.0,0.90223261]
[1756828952770,0.0002,111140.0,111130.0,0.74431261]
[1756828953000,0.0002,111140.0,111130.0,0.90219261]
[1756828953918,0.0023,111140.0,111130.0,0.72033379]
[1756828954136,0.69364362,111140.0,111130.0,0.71823379]
[1756828954348,0.69364362,111140.0,111130.0,0.87611379]
[1756828954567,0.69051362,111140.0,111130.0,0.87611379]
[1756828955013,0.02802,111140.0,111130.0,0.87821379]
[1756828955500,0.02592,111140.0,111130.0,0.88125379]
[1756828955748,0.0002,111140.0,111130.0,0.90219261]
[1756828956554,0.0002,111140.0,111130.0,0.74431261]
[1756828956805,0.0002,111140.0,111130.0,0.88125379]
[1756828957251,0.0002,111140.0,111130.0,0.72337379]
[1756828957441,0.0002,111140.0,111130.0,0.88125379]
[1756828957647,0.0002,111140.0,111130.0,0.72337379]
[1756828957879,0.0023,111140.0,111130.0,0.87821379]
[1756828958628,0.0023,111140.0,111130.0,0.72033379]
[1756828958817,0.87541683,111140.0,111130.0,0.49691599]
[1756828959097,0.87541683,111140.0,111130.0,0.005]
[1756828959330,1.21541683,111140.0,111130.0,0.005]
[1756828959542,1.24597017,111140.0,111130.0,0.16288]
[1756828959746,1.24597017,111140.0,111130.0,0.16284]
[1756828959965,1.24597017,111140.0,111130.0,0.15784]
[1756828960382,1.24597017,111140.0,111130.0,0.15884]
[1756828960764,1.21541683,111140.0,111130.0,0.15784]
[1756828961699,0.1799856,111120.0,111110.0,0.06393696]
[1756828961933,0.84449922,111120.0,111110.0,0.49369475]
[1756828962124,0.87516922,111120.0,111110.0,0.49369475]
[1756828962835,0.2095456,111120.0,111110.0,0.49369475]
[1756828963050,0.87203922,111120.0,111110.0,0.49569475]
[1756828963298,0.2095456,111120.0,111110.0,0.49783475]
[1756828963524,0.42592381,111120.0,111110.0,0.49783475]
[1756828963747,0.17998395,111130.0,111110.0,0.49783475]
[1756828963748,0.60590776,111130.0,111120.0,0.1799856]
[1756828963988,0.60792776,111130.0,111120.0,0.1820856]
[1756828964689,0.61105776,111130.0,111110.0,0.34087475]
[1756828964907,0.21267395,111130.0,111120.0,0.15788]
[1756828965139,0.21267395,111130.0,111120.0,0.3378656]
[1756828965353,0.02754,111130.0,111120.0,0.3429856]
[1756828965568,0.02754,111130.0,111120.0,0.43490159]
[1756828965850,0.2075094,111130.0,111120.0,0.43188159]
[1756828966072,0.63545321,111130.0,111120.0,0.49501599]
[1756828966295,0.63858321,111130.0,111120.0,0.55888]
[1756828966523,0.63858321,111130.0,111120.0,0.15888]
[1756828966744,0.63858321,111130.0,111120.0,0.15788]
[1756828967201,0.63858321,111130.0,111120.0,0.15988]
[1756828967663,0.63858321,111130.0,111120.0,0.002]
[1756828967876,0.58321274,111130.0,111120.0,0.15984]
[1756828968101,1.43506036,111130.0,111120.0,0.15984]
[1756828968326,0.5526594,111130.0,111120.0,0.15984]
[1756828968552,1.40450702,111130.0,111120.0,0.15984]
[1756828968778,0.97858321,111130.0,111120.0,0.16084]
[1756828969233,0.97858321,111130.0,111120.0,0.15784]
[1756828970568,0.98771229,111130.0,111120.0,0.15784]
[1756828971275,0.1799856,111120.0,111110.0,0.06393696]
[1756828971511,1.43507656,111120.0,111110.0,0.00049696]
[1756828971730,1.52699255,111120.0,111110.0,0.15833696]
[1756828971959,1.49643921,111120.0,111110.0,0.15833696]
[1756828972184,1.49643921,111120.0,111110.0,0.00049696]
[1756828972185,1.52699255,111120.0,111110.0,0.00049696]
[1756828972405,1.54636991,111120.0,111110.0,0.00049696]
[1756828972617,1.51581657,111120.0,111110.0,0.00049696]
[1756828973266,1.49843921,111120.0,111110.0,0.00049696]
[1756828973476,1.52899255,111120.0,111110.0,0.00049696]
[1756828974053,1.54835934,111120.0,111110.0,0.00049696]
[1756828974258,1.52899255,111120.0,111110.0,0.00049696]
[1756828974471,1.62090854,111120.0,111110.0,0.00049696]
[1756828975106,1.64834988,111120.0,111110.0,0.00049696]
[1756828975528,1.6692887,111120.0,111110.0,0.00049696]
[1756828976663,1.8271687,111120.0,111110.0,0.00049696]
[1756828978360,1.85423417,111120.0,111110.0,0.00049696]
[1756828979180,1.80423417,111120.0,111110.0,0.00049696]
[1756828979634,1.94615016,111120.0,111110.0,0.00049696]
[1756828979838,1.94615016,111120.0,111090.0,0.15788]
[1756828979839,0.18005041,111080.0,111070.0,0.13698631]
[1756828980044,1.37189803,111080.0,111070.0,0.29486631]
[1756828980252,1.37391803,111080.0,111070.0,0.2974364]
[1756828980887,1.37391803,111080.0,111070.0,0.00047009]
[1756828981100,1.40458803,111080.0,111070.0,0.00047009]
[1756828981311,1.41351183,111080.0,111070.0,0.15835009]
[1756828981516,1.41038183,111080.0,111070.0,0.16045009]
[1756828981911,1.41038183,111080.0,111070.0,0.00257009]
[1756828982140,1.41038183,111080.0,111070.0,0.15835009]
[1756828982352,1.41351183,111080.0,111070.0,0.15835009]
[1756828982993,1.41351183,111080.0,111070.0,0.00247009]
[1756828983399,1.41351183,111080.0,111070.0,0.16035009]
[1756828983654,1.41351183,111080.0,111070.0,0.16135009]
[1756828983865,1.41038183,111080.0,111070.0,0.15835009]
[1756828984112,0.34,111080.0,111070.0,0.34353671]
[1756828984329,0.52904718,111100.0,111080.0,0.18004453]
[1756828984544,0.21611153,111100.0,111090.0,0.163]
[1756828984756,0.18005041,111080.0,111070.0,0.00147009]
[1756828984970,1.03189803,111080.0,111070.0,0.00147009]
[1756828985186,0.42592381,111080.0,111070.0,0.4364527]
[1756828985394,0.60597422,111080.0,111070.0,0.4364527]
[1756828985839,0.60597422,111080.0,111070.0,0.25538608]
[1756828986053,0.60597422,111080.0,111070.0,0.4354527]
[1756828986255,0.60597422,111080.0,111070.0,0.4374527]
[1756828986400,0.60597422,111080.0,111070.0,0.25538608]
[1756828986604,1.03391803,111080.0,111070.0,0.16045009]
[1756828986813,1.03391803,111080.0,111070.0,0.16345009]
[1756828987456,0.18005041,111080.0,111070.0,0.16347009]
[1756828987664,0.60597422,111080.0,111070.0,0.34353671]
[1756828988313,0.60597422,111080.0,111070.0,0.16347009]
[1756828988968,0.60597422,111080.0,111070.0,0.16547009]
[1756828989180,1.03189803,111080.0,111070.0,0.00759009]
[1756828989341,1.03723803,111080.0,111070.0,0.16035009]
[1756828989544,1.03189803,111080.0,111070.0,0.16540009]
[1756828990454,0.60597422,111080.0,111070.0,0.34546671]
[1756828990651,0.60597422,111080.0,111070.0,0.09943608]
[1756828990872,1.03189803,111080.0,111070.0,0.16540009]
[1756828991106,1.03400803,111080.0,111070.0,0.16237009]
[1756828991310,1.03400803,111080.0,111070.0,0.16540009]
[1756828991524,1.03189803,111080.0,111070.0,0.16540009]
[1756828991761,1.03189803,111080.0,111070.0,0.34546671]
[1756828991974,1.03189803,111080.0,111070.0,0.16540009]
[1756828993121,0.60597422,111080.0,111070.0,0.34546671]
[1756828993826,0.1800342,111090.0,111070.0,0.4373827]
[1756828994049,0.42592381,111090.0,111080.0,0.34067271]
[1756828994280,0.60595801,111090.0,111080.0,0.34044208]
[1756828994488,0.60595801,111090.0,111080.0,0.4982964]
[1756828994918,0.60595801,111090.0,111080.0,0.31824599]
[1756828995127,0.60595801,111090.0,111080.0,0.4982964]
[1756828995336,0.60595801,111090.0,111080.0,0.31824599]
[1756828995537,0.60595801,111090.0,111080.0,0.16040599]
[1756828995716,0.60806801,111090.0,111080.0,0.31521599]
[1756828995925,0.60806801,111090.0,111080.0,0.2233]
[1756828996174,0.60595801,111090.0,111080.0,0.40335041]
[1756828996356,0.60595801,111090.0,111080.0,0.40738041]
[1756828996616,0.60595801,111090.0,111080.0,0.40638041]
[1756828996832,0.42592381,111090.0,111080.0,0.4982964]
[1756828997040,0.60595801,111090.0,111080.0,0.5002964]
[1756828997272,0.60595801,111090.0,111080.0,0.9002964]
[1756828998010,0.60595801,111090.0,111080.0,0.7424564]
[1756828998217,0.60595801,111090.0,111080.0,0.9002964]
[1756828999142,0.60595801,111090.0,111080.0,0.5002964]
[1756828999358,0.42592381,111090.0,111080.0,0.5002964]
[1756828999587,0.60595801,111090.0,111080.0,0.5002964]
[1756828999762,0.60595801,111090.0,111080.0,0.32024599]
[1756829000221,0.60595801,111090.0,111080.0,0.5002964]
[1756829000437,0.42592381,111090.0,111080.0,0.5002964]
[1756829000654,0.42592381,111100.0,111090.0,0.1800342]
[1756829000896,0.42592381,111100.0,111090.0,0.27925061]
[1756829001107,0.42592381,111100.0,111090.0,0.43484019]
[1756829001329,0.42592381,111100.0,111090.0,0.44403927]
[1756829001532,0.1800342,111090.0,111080.0,0.24851576]
[1756829001741,0.60595801,111090.0,111080.0,0.50025175]
[1756829002162,0.60595801,111090.0,111080.0,0.34045175]
[1756829002581,0.42592381,111090.0,111080.0,0.49825175]
[1756829002784,0.60595801,111090.0,111080.0,0.49825175]
[1756829003015,0.42592381,111090.0,111080.0,0.50025175]
[1756829003219,0.60806801,111090.0,111080.0,0.06544]
[1756829003422,0.63774801,111090.0,111080.0,0.22324]
[1756829004493,0.6571755,111090.0,111080.0,0.22324]
[1756829005161,1.08309931,111090.0,111080.0,0.06544]
[1756829005380,0.6571755,111090.0,111080.0,0.22324]
[1756829005826,0.6571755,111090.0,111080.0,0.06544]
[1756829006057,0.6571755,111090.0,111080.0,0.22324]
[1756829006267,0.6571755,111090.0,111080.0,0.22124]
[1756829006737,0.6571755,111090.0,111080.0,0.22224]
[1756829007614,0.63451801,111090.0,111080.0,0.22426]
[1756829007826,0.63240801,111090.0,111080.0,0.22729]
[1756829008281,0.63240801,111090.0,111080.0,0.06949]
[1756829008282,0.63451801,111090.0,111080.0,0.06949]
[1756829008460,0.63451801,111090.0,111080.0,0.22426]
[1756829008883,0.63774801,111090.0,111080.0,0.22324]
[1756829009096,0.63774801,111090.0,111080.0,0.22124]
[1756829009300,0.63451801,111090.0,111080.0,0.22326]
[1756829009515,0.63451801,111090.0,111080.0,0.22526]
[1756829010137,0.63451801,111090.0,111080.0,0.22324]
[1756829010345,0.2085942,111090.0,111080.0,0.22526]
[1756829010559,0.63451801,111090.0,111080.0,0.22522]
[1756829010709,0.63451801,111090.0,111080.0,0.40527041]
[1756829010923,0.63451801,111090.0,111080.0,0.40830041]
[1756829011123,0.63451801,111090.0,111080.0,0.22522]
[1756829011875,0.63451801,111090.0,111080.0,0.40527041]
[1756829012073,0.60595801,111090.0,111080.0,0.5002164]